Cogmind - Beta 15 @@@ ROGUE MODE // 2025.05.15 @ 14:11:26 Player: Cholfo Result: Destroyed by 43-Y14(R) with Subdweller Machine Gun Performance ------------- Evolutions (0) 0 Regions Visited (2) 400 Robots Destroyed (23) 115 Value Destroyed (802) 802 Prototype IDs (0) 0 Alien Tech Used (0) 0 Bonus (-24) -24 TOTAL SCORE: 1293 Bonus ------- Friendly Fire -24 Cogmind --------- Core Integrity 0/250 Matter 92/300 Energy 124/125 System Corruption 0% Temperature Cool (0) Movement Rolling (140) Ox4 Location -10/Subcaves Parts ------- > --- POWER (1) -------- Light Ion Engine > --- PROPULSION (2) --- Spiked Treads Wheel > --- UTILITY (2) ------ High-capacity Storage Unit > --- WEAPON (2) ------- Grenade Launcher > --- INVENTORY (20) --- Subdweller Power Source Makeshift Leg Subdweller Monowheel Subdweller Monowheel Disposable Heat Sink Large Storage Unit Large Matter Pod (122) Subdweller Optics Subdweller Optics Seismic Detector Seismic Detector Medium Laser Small Laser Assault Rifle Subdweller Machine Gun Grenade Launcher Subdweller Shrapnel Launcher Flamer Peak State ------------ > --- POWER ------------ Ion Engine > --- PROPULSION ------- Light Treads Spiked Treads > --- UTILITY ---------- High-capacity Storage Unit Core Shielding > --- WEAPON ----------- Battle Rifle Grenade Launcher > --- INVENTORY -------- Light Ion Engine Subdweller Power Source Makeshift Leg Wheel Subdweller Monowheel Subdweller Monowheel Disposable Heat Sink Large Storage Unit Large Matter Pod Subdweller Optics Subdweller Optics Seismic Detector Seismic Detector Medium Laser Small Laser Assault Rifle Subdweller Machine Gun Grenade Launcher Flamer [Rating: 12] Favorites ----------- Power Ion Engine Engine Ion Engine Power Core Light Nuclear Core Propulsion Light Treads Treads Light Treads Wheel Wheel Utility Core Shielding Device Seismic Detector Storage High-capacity Storage Unit Protection Core Shielding Weapon Battle Rifle Energy Gun Medium Laser Ballistic Gun Battle Rifle Launcher Grenade Launcher Build | -11 -10 -10 ------- Run | Yrd Mat Sub Slots Evolved . | . . . Power . | . . . Propulsion . | . . . Utility . | . . . Weapon . | . . . Parts Attached 26 | 9 11 6 Power 5 | 1 2 2 Engine 4 | 1 1 2 Core 1 | . 1 . Reactor . | . . . Propulsion 8 | 3 4 1 Treads 3 | . 2 1 Leg . | . . . Wheel 5 | 3 2 . Hover . | . . . Flight . | . . . Utility 5 | 2 3 . Device 1 | 1 . . Storage 3 | 1 2 . Processor . | . . . Hackware . | . . . Protection 1 | . 1 . Artifact . | . . . Weapon 8 | 3 2 3 Energy Gun 4 | 2 2 . Energy Cannon . | . . . Ballistic Gun 2 | 1 . 1 Ballistic Cannon . | . . . Launcher 2 | . . 2 Special Weapon . | . . . Impact Weapon . | . . . Slashing Weapon . | . . . Piercing Weapon . | . . . Special Melee Weapon . | . . . Unidentified Prototypes . | . . . Parts Lost 11 | . 5 6 Power 3 | . 1 2 Propulsion 5 | . 3 2 Utility 1 | . . 1 Weapon 2 | . 1 1 Highest Loss Streak 3 | . 3 2 To Critical Strikes . | . . . Average Backups 15 | 2 7 18 Power 2 | . 1 2 Propulsion 3 | 1 2 3 Utility 5 | . 1 6 Weapon 4 | . 2 5 Tool/Special . | . . . Unused Backups 12 | . . 12 Power 1 | . . 1 Propulsion 3 | . . 3 Utility 5 | . . 5 Weapon 3 | . . 3 Tool/Special . | . . . Average Slot Usage (%) 97 | . 96 97 Engine 11 | . 9 12 Treads 21 | . 4 27 Wheel 5 | . 21 . Storage 14 | . 14 14 Protection 13 | . 11 13 Energy Gun 12 | . 27 7 Ballistic Gun 8 | . . 10 Launcher 7 | . . 9 Peak Build Rating 12 | 7 9 12 Average Rating 9 | 5 7 10 On Entrance 5 | . 7 8 Naked Turns . | . . . Heaviest Build 51 | 14 49 51 Greatest Support 40 | 26 40 40 Greatest Overweight (x) 4 | . 2 4 Average Overweight (x) . | . . 1 Largest Inventory Capacity 20 | 8 20 20 Average Capacity 17 | 7 10 20 Most Carried 20 | 5 10 20 Average Carried 15 | 2 7 18 Final Capacity 20 | 8 20 20 Final Carried 18 | 5 10 18 Class Distribution -------------------- 100% | Mutant Dominant Class ---------------- Mutant | -10/Materials Mutant | -10/Subcaves Resources | -11 -10 -10 ----------- Run | Yrd Mat Sub Matter Collected 709 | 290 124 295 Remotely . | . . . Salvage Created 906 | 117 473 316 Parts 55 | 6 22 27 Haulers Intercepted . | . . . Recyclers Shooed . | . . . Parts Field Recycled . | . . . Retrieved Matter . | . . . Parts Self-Destructed 6 | . . 6 Prevented . | . . . Kills | -11 -10 -10 ------- Run | Yrd Mat Sub Combat Hostiles Destroyed 20 | . 10 10 Guns 13 | . 10 3 AOE 7 | . . 7 Classes Destroyed 5 | 2 2 1 Tunneler 1 | 1 . . Recycler 1 | 1 . . Watcher 1 | . 1 . Grunt 11 | . 10 1 Subdweller 9 | . . 9 Best Kill Streak 3 | 2 3 3 Combat Bots Only 3 | . 3 3 Max Kills in Single Turn 2 | 1 1 2 Gunslinging . | . . . Exploded 2 | . . 2 Melee . | . . . Uniques/NPCs Destroyed . | . . . Combat | -11 -10 -10 -------- Run | Yrd Mat Sub Hostile Shots Fired 118 | . 59 59 Missed 31 | . 11 20 Hits 87 | . 48 39 Projectile 87 | . 48 39 AOE 4 | . . 4 Critical Strikes 1 | . . 1 Damage Taken 1540 | . 609 931 Core 269 | . 126 143 Absorbed by Shields . | . . . Redirected to Shielding 50 | . 22 28 Core Remaining (%) 100 | 100 . . Volleys Fired 98 | 5 43 50 Largest 2 | 2 2 2 Hottest 90 | 90 90 90 Shots Fired 176 | 10 77 89 Gun 163 | 10 77 76 Cannon . | . . . Launcher 13 | . . 13 Special . | . . . Kinetic 50 | . . 50 Thermal 113 | 10 77 26 Explosive 13 | . . 13 Electromagnetic . | . . . Robot Hit Streak 13 | 5 10 13 Robot Miss Streak 3 | 2 3 2 Penetration Max . | . . . Secondary Targets 2 | . 1 1 Max Gunslinging Chain 1 | . 1 1 Shots Hit Robots 93 | 6 56 31 Core Hits 49 | 3 25 21 Critical Kills . | . . . Critical Parts Destroyed . | . . . Critical Strikes 4 | . 4 . Burn 4 | . 4 . Melee Attacks . | . . . Impact . | . . . Slashing . | . . . Piercing . | . . . Sneak Attacks . | . . . Combat Hostiles . | . . . Follow-up Attacks . | . . . Damage Inflicted 1606 | 73 660 873 Guns 1023 | 73 660 290 Cannons . | . . . Explosions 583 | . . 583 Melee . | . . . Ramming . | . . . Kinetic 76 | . . 76 Thermal 947 | 73 660 214 Explosive 583 | . . 583 Electromagnetic . | . . . Impact . | . . . Slashing . | . . . Piercing . | . . . Highest Corruption . | . . . Average Corruption . | . . . Corruption Purged . | . . . Corruption Blocked . | . . . Overload Shots . | . . . Overflow Damage . | . . . Projectiles . | . . . Explosions . | . . . Melee . | . . . Knockbacks . | . . . Impact . | . . . Kinetic . | . . . Secondary . | . . . Self-Inflicted Damage . | . . . Shots . | . . . Rammed . | . . . Targets Rammed . | . . . Kicked . | . . . Crushed . | . . . Highest Temperature 277 | 150 277 3 Average Temperature 100 | 76 103 3 Received Heat Transfer 390 | . 339 51 Effects 1 | . 1 . Interference 1 | . 1 . Siege Activations . | . . . Martial Activations . | . . . Shielding Activations . | . . . Robots Disrupted . | . . . Combat Hostiles . | . . . Robots Corrupted . | . . . Combat Hostiles . | . . . Parts Fried . | . . . Impact Corruptions . | . . . Robots Melted . | . . . Combat Hostiles . | . . . Parts Melted 10 | 1 9 . Heat Transferred 2848 | 198 2080 570 Parts Sabotaged . | . . . Parts Stolen . | . . . Parts Stripped . | . . . Power Chain Reactions . | . . . Alert | -11 -10 -10 ------- Run | Yrd Mat Sub Maximum Alert Level . | . . . Low Security (%) 100 | 100 100 . Level 1 . | . . . Level 2 . | . . . Level 3 . | . . . Level 4 . | . . . Level 5 . | . . . High Security . | . . . Max Security . | . . . Peak Influence 110 | 10 110 . Initial . | . . . Average 50 | 1 58 . Influence Increases 365 | 10 335 20 Destroy 0b10 Robot/C 220 | . 200 20 Destroy 0b10 Robot/NC 15 | 10 5 . Destroy Leader 62 | . 62 . Successful Hack 8 | . 8 . Partial Spotted 15 | . 15 . Lose Combat Pursuer 45 | . 45 . Influence Decreases 365 | 10 286 69 Entered New Map 25 | . . 25 Time Decay 273 | 10 236 27 Lost Part 67 | . 50 17 Squads Dispatched 3 | . 3 . Investigation 1 | . 1 . Extermination . | . . . Reinforcement 2 | . 2 . Assault . | . . . Garrison . | . . . Intercept . | . . . Searches Triggered . | . . . Construction Impeded . | . . . Haulers Reinforced . | . . . Active Scanning Responses . | . . . Cargo Convoy Interrupts . | . . . Stealth | -11 -10 -10 --------- Run | Yrd Mat Sub Distress Signals 2 | . 2 . Communications Jammed . | . . . Distress Signals . | . . . Times Spotted 32 | . 19 13 Peak Tracking Total 5 | . 5 3 Tactical Retreats 4 | . 3 1 Traps | -11 -10 -10 ------- Run | Yrd Mat Sub Traps Triggered 2 | . 2 . Indirectly . | . . . Trap Hack Attempts . | . . . Triggered . | . . . Disarmed . | . . . Reprogrammed . | . . . Reused . | . . . Traps Extracted . | . . . Installed . | . . . Triggered . | . . . Machines | -11 -10 -10 ---------- Run | Yrd Mat Sub Machines Disabled . | . . . Max in Single Turn . | . . . Machines Repaired . | . . . Machines Dismantled . | . . . Machines Sabotaged . | . . . Overloaded Fab Kills . | . . . Hacking | -11 -10 -10 --------- Run | Yrd Mat Sub Machines Accessed 5 | . 3 2 Terminals 3 | . 3 . Fabricators . | . . . Repair Stations . | . . . Recycling Units . | . . . Scanalyzers . | . . . Garrison Access . | . . . Total Hacks 10 | . 8 2 Successful 5 | . 3 2 Failed 5 | . 5 . Catastrophic . | . . . Database Lockouts . | . . . Manual 6 | . 6 . Terminals 8 | . 8 . Fabricators . | . . . Repair Stations . | . . . Recycling Units . | . . . Scanalyzers . | . . . Garrison Access . | . . . Terminal Hacks 3 | . 1 2 Record 1 | . . 1 Open Door 1 | . . 1 Level Access Points 1 | . 1 . Fabricator Hacks . | . . . Repair Station Hacks . | . . . Recycling Unit Hacks . | . . . Scanalyzer . | . . . Garrison Access Hacks . | . . . Unauthorized Hacks 2 | . 2 . Terminals 2 | . 2 . Botnet 2 | . 2 . Fabricators . | . . . Repair Stations . | . . . Recycling Units . | . . . Scanalyzers . | . . . Garrison Access . | . . . Data Cores Recovered . | . . . Used . | . . . Hacking Detections 3 | . 3 . Full Trace Events 1 | . 1 . Feedback Events . | . . . Feedback Blocked . | . . . Robot Schematics Acquired . | . . . Robots Built . | . . . Authchips . | . . . Time . | . . . Total Robot Build Rating . | . . . Part Schematics Acquired . | . . . Parts Built . | . . . Authchips . | . . . Time . | . . . Total Part Build Rating . | . . . Parts Repaired . | . . . Time . | . . . Parts Recycled . | . . . Recycled Matter . | . . . Retrieved Matter . | . . . Retrieved Components . | . . . Parts Scanalyzed . | . . . Part Schematics Acquired . | . . . Parts Damaged . | . . . Bothacking | -11 -10 -10 ------------ Run | Yrd Mat Sub Used RIF Installer . | . . . Robots Hacked . | . . . Non-combat . | . . . Combat . | . . . Robot Hacks Applied . | . . . Relay Couplers Released . | . . . Fabnet Peak Effective % . | . . . Robots Rewired . | . . . Allies Hacked . | . . . Hacks Repelled . | . . . Allies | -11 -10 -10 -------- Run | Yrd Mat Sub Total Allies . | . . . Largest Group . | . . . Highest-Rated Group . | . . . Highest-Rated Ally . | . . . Total Orders . | . . . Ally Attacks . | . . . Total Damage . | . . . Kills . | . . . Allies Corrupted . | . . . Allies Melted . | . . . Intel | -11 -10 -10 ------- Run | Yrd Mat Sub Active Infowar (turns) 91 | 22 69 . Seismic 91 | 22 69 . Robot Analysis Total . | . . . Derelict Logs Recovered . | . . . Drone Launches . | . . . Drone Recoveries . | . . . Exploration | -11 -10 -10 ------------- Run | Yrd Mat Sub Turns Passed 2355 | 79 529 1747 Spaces Moved 1053 | 52 331 670 Core 1 | 1 . . Treads 662 | . 52 610 Legs . | . . . Wheels 390 | 51 279 60 Hover . | . . . Flight . | . . . Fastest Speed 50 | 50 80 140 Average Speed 184 | 86 98 234 Slowest Speed 360 | 100 240 360 Overloaded Moves . | . . . Propulsion Burnouts . | . . . Robots Hopped . | . . . Potential Cave-ins . | . . . Cave-ins Triggered . | . . . Exploration Rate (%) 34 | 4 60 38 Regions Visited 2 Branch Regions 1 Pre-discovered Areas . | . . . Known Exits Taken . | . . . Unknown Exits Taken 2 | 1 1 . Scrap Searched . | . . . Spaces Dug 5 | . . 5 Terrain Destroyed 62 | . . 62 Melee . | . . . Projectile . | . . . AOE 62 | . . 62 Terrain Rammed . | . . . Walls Destroyed . | . . . Machines Disabled . | . . . Actions | -11 -10 -10 --------- Run | Yrd Mat Sub Total 1288 | 71 457 760 Wait 72 | . 55 17 Move 1051 | 51 330 670 Hop . | . . . Pick Up 26 | 5 9 12 Fast Attach 10 | 7 3 . Attach 9 | . 5 4 Detach . | . . . Swap 17 | 2 8 7 Drop 5 | 1 4 . Fire 98 | 5 43 50 Melee . | . . . Ram . | . . . Kick . | . . . Crush . | . . . Escape Stasis . | . . . Rewire . | . . . Trap . | . . . Miscellaneous . | . . . Route ------- -11/Scrapyard -10/Materials (discovered 5 exits: *Mat x3 / [*Min] / *Sub) -10/Subcaves (discovered 3 exits: [*Mat x2] / [*Scr]) History --------- Turn | Location | Event 19 | -11/Scrapyard | Discovered new exit (range 15) 80 | -11/Scrapyard | Entered Materials 204 | -10/Materials | Discovered new exit (range 5) 216 | -10/Materials | Discovered new exit (range 8) 296 | -10/Materials | Identified exit to Materials 314 | -10/Materials | Build established: Mutant 375 | -10/Materials | Lost 3 parts (1p1n1w) 522 | -10/Materials | Core integrity fell below 50% 587 | -10/Materials | Discovered new exit (range 10) 609 | -10/Materials | Entered Subcaves 610 | -10/Subcaves | Approached by a straggling Scientist 793 | -10/Subcaves | Discovered new exit (range 9) 1009 | -10/Subcaves | Ambushed by Subdwellers from Twisted Machinery 1397 | -10/Subcaves | Shifting Twisted Machinery released Flamer 1400 | -10/Subcaves | Shifting Twisted Machinery released Mak. Leg 1421 | -10/Subcaves | Scientist uncovered a shortcut to Scraptown 1952 | -10/Subcaves | Discovered new exit (range 13) 2342 | -10/Subcaves | Core integrity fell below 20% 2356 | -10/Subcaves | Destroyed by 43-Y14(R) with Subdweller Machine Gun Last Messages --------------- 01897_ KQ-IJG(R) destroyed. 01901_ Subatomizers dissect the Sub. Optics. 01909_ Acquired 33 matter. 01912_ Acquired 30 matter. 01915_ Subatomizers dissect the Sub. Optics. 01921_ Acquired Sub. Shrapnel Launcher. 01926_ Subatomizers dissect the Disposable Heat Sink. 01952_ EXIT=FOUND 02195_ Acquired 9 matter. 02230_ G-34 Mercenary destroyed. 02232_ Acquired 40 matter. 02235_ Sml. Laser fries itself beyond repair. 02239_ Aluminum Leg fries itself beyond repair. 02259_ Lgt. Treads destroyed. 02263_ Ion Engine destroyed. 02324_ M3-HN5(u) deconstructs Twisted Machinery. 02335_ 1N-YT9(R): "LEAVESUB!" 02342_ Battle Rifle destroyed. 02346_ Core Shielding destroyed. Map ----- +----------------------------------------------------+ | ????????????????????????????????? "????????### | | ????????????????????????????????# "????????# | | ???????????????????????????????# ??????????# | | ????????????????????????????###""" ????????????## | | ???????????????????????????## "#??????????????## | | ?????????????? #??????????# #????????????????# | | ????????????? ?????????## #???###?????????## | | ????????????? ????????# ##???# ##????????# | | ?????????????? ???????## ####?# ##???????## | | ??????????????? ???????# #?# ##??????# | | ????????????????# ??????## #### #????#### | | ?????????????????# ???????## #### #?#### | | ?????????? ##?# ??####### ### ### | | ???????????# # ### ### | | ???????????# ## ### | | ???????????# ### #??## | | ??????????????# # ## ## ###?# ##??? | | ????????????????????## ## ##??## #### | | ??????????????????#### ####### ##???# | | ?????????????????## ####??####????# | | ??#######????????# ; ;;;#???????# | | ### ## ###?????## #????????## ### | | ## #####?# ###???????# #?# | | ## #?## ;; #???????# ### ## | | ## #### ; #???????###??## ## | | ### # # @ ; #?????????????# ### | | ## ## & ;##?????????????#####?# | | ### & ;#????????????????????? | | ## ###" & ##????????????????????? | | ## # ### ""& #?????????????????????? | | # " """" "#?????????????????????? | | ## ## """" "#?????????????????????? | | ## ###### "" ##?????????????????????? | | ####????#" #?????????????????????? | | #?###???## #?????????????????????? | | ##?#"####### # ! ##?????????????????????? | | # ###" "# ## #[ ##?????????????????????? | | # ###"" ## # ##?????????????????????? | | # #?# ### # & ##?????????????????????? | | # # #?### ### ### #?????????????????????? | | #### #??## ### ###???????????????????? | | #??# ###??# ## #???????????????????? | | ?## #????### "" ##???????????????????? | | ## #??????##"""" # #???????????????????? | | ##???????## " "" ## #???????????????????? | | ##?????????## "##"" " ##???????????????????? | | #??###????#### # " "" #???????????????????? | | #?## ##### ## ## """"#??????????????????? | | #?# ### ""##??????????????????? | | #??# " ### ##??????????????????? | +----------------------------------------------------+ Best States ------------- Heat Dissipation 25 Energy Generation 14 Energy Capacity 250 Matter Stores 300 Matter Capacity 300 Sight Range 16 Terrain Scan Density 10 Core Shielding 20 Evasion (%) 44 Recoil Reduction 2 Item Schematics ----------------- None Robot Schematics ------------------ None Fabricated ------------ Nothing Repaired ---------- Nothing Alien Tech Used ----------------- None Achievements -------------- None Challenges ------------ None Game ------ Seed ImprovedSuperquantumMinigun Manual? 0 Play Time 00:15:40 Cumulative 14.6 hours Start 2025.05.15 @ 13:55:58 End 2025.05.15 @ 14:11:26 Sessions 1 Manual Loads 0 Difficulty Rogue Special Mode None Game No. 17 Rogue 17 Adventurer 0 Explorer 0 Win Type - Total 0 Types 0/0/0/0/0/0/0/0/0/0 Lore% 21 Gallery% 20 Achievement% 19 Wizard Run 0 Options --------- Layout 1 ASCII 1 Keyboard 1 Movement Vi Keybinds 0 Fullscreen 2 Font 32/SmallcapsGlow Map View 50x35 Zoom Use 0% Tactical HUD 1 Map Filters NONE Filters NONE Steam 1 RUN: d508ac25-a64e-48d9-ba8d-af4b78def22b